bitfinex/quotes_ETHUSD_20250925
["timestamp","ask_amount","ask_price","bid_price","bid_amount"]
[1758841727607,9.23117865,3909.4,3909.2,0.002]
[1758841727779,0.792,3908.8,3908.3,0.4281]
[1758841728109,2.55827224,3908.9,3908.3,0.7161]
[1758841728110,3.0,3908.6,3908.3,0.7161]
[1758841728408,3.0,3908.4,3908.1,0.02]
[1758841728608,4.369,3908.9,3908.2,2.58428233]
[1758841728908,0.64081186,3909.4,3908.8,2.55830479]
[1758841728909,3.0,3909.4,3908.8,2.55830479]
[1758841729107,4.369,3909.3,3908.9,0.02558264]
[1758841729306,3.0,3909.2,3908.9,0.74168264]
[1758841729610,4.369,3909.4,3909.0,0.7161]
[1758841729789,4.369,3909.5,3908.8,0.1272]
[1758841729991,3.0,3909.4,3909.1,0.7161]
[1758841730191,3.0,3909.4,3909.2,0.7161]
[1758841730392,3.0,3909.4,3909.3,0.7161]
[1758841731195,0.24914133,3909.7,3909.3,0.7161]
[1758841731395,3.0,3909.5,3908.8,0.15278329]
[1758841731597,3.0,3909.5,3909.4,0.7161]
[1758841732308,4.369,3909.5,3909.4,0.7161]
[1758841736396,0.24914133,3909.7,3909.4,0.7161]
[1758841736744,3.0,3909.5,3909.4,0.7161]
[1758841737535,3.0,3909.5,3909.1,0.7161]
[1758841737836,3.0,3909.3,3909.2,0.74168068]
[1758841738026,4.369,3909.5,3909.3,0.7161]
[1758841738247,7.369,3909.6,3909.4,0.7161]
[1758841738549,7.369,3909.6,3909.5,0.7161]
[1758841738938,7.369,3909.6,3909.2,0.8433]
[1758841738939,14.559,3909.6,3909.2,0.8433]
[1758841739145,14.559,3909.6,3909.3,0.7161]
[1758841740147,14.559,3909.6,3909.3,0.4687]
[1758841740441,14.559,3909.6,3909.4,0.7161]
[1758841740646,14.559,3909.6,3909.5,0.7161]
[1758841740848,7.19,3910.6,3909.5,0.7161]
[1758841741150,4.369,3910.5,3910.1,0.1272]
[1758841741349,3.0,3910.4,3910.2,0.7161]
[1758841741948,4.369,3910.5,3910.1,0.1272]
[1758841742141,3.0,3910.4,3910.3,0.7161]
[1758841742339,3.0,3910.4,3910.1,0.1272]
[1758841742655,0.792,3910.1,3908.4,2.55854751]
[1758841742827,0.1272,3909.7,3909.1,0.1272]
[1758841743033,3.0,3909.5,3909.1,0.1272]
[1758841743349,3.0,3909.5,3909.2,0.2474]
[1758841743550,3.0,3909.5,3909.2,0.6996]
[1758841744124,3.0,3909.5,3909.3,0.6826]
[1758841744464,3.0,3909.5,3909.4,0.6826]
[1758841745072,3.0,3909.5,3909.3,0.1272]
[1758841745234,3.0,3909.5,3909.3,0.5794]
[1758841745556,3.0,3909.5,3909.4,0.6826]
[1758841745920,0.1272,3910.3,3909.4,0.8098]
[1758841746163,3.0,3910.1,3909.5,0.70817871]
[1758841746364,3.0,3910.1,3910.0,0.1272]
[1758841747645,3.0,3910.1,3910.0,0.8098]
[1758841748875,3.0,3910.1,3910.0,0.1272]
[1758841749259,0.793,3910.5,3910.0,0.1272]
[1758841749484,0.792,3910.3,3909.1,0.002]
[1758841749782,0.792,3910.0,3909.1,0.002]
[1758841749941,3.0,3909.8,3909.1,0.002]
[1758841750149,3.0,3909.6,3909.1,0.6846]
[1758841750342,0.40109323,3910.2,3909.1,0.6846]
[1758841750562,3.0,3910.0,3909.1,0.002]
[1758841750757,3.0,3909.8,3909.1,0.002]
[1758841751479,3.0,3909.6,3909.1,0.002]
[1758841751640,3.0,3909.4,3909.1,0.002]
[1758841751840,4.368,3909.4,3909.1,0.002]
[1758841752449,3.0,3909.3,3909.1,0.002]
[1758841753384,3.0,3909.3,3909.2,0.6826]
[1758841754780,0.001,3910.5,3909.2,0.6826]
[1758841755080,3.0,3910.3,3909.3,0.6826]
[1758841755278,0.4434,3910.2,3909.1,2.3634]
[1758841755581,4.96224701,3910.4,3909.1,2.3634]
[1758841755582,3.0,3910.0,3909.2,0.6826]
[1758841755747,3.0,3910.0,3909.2,0.4522]
[1758841756069,3.0,3910.0,3909.3,0.2304]
[1758841757890,3.76103,3910.0,3909.1,0.002]
[1758841758098,0.7054,3909.9,3909.1,0.002]
[1758841758462,0.7054,3909.9,3909.1,0.2384]
[1758841759324,0.7054,3909.9,3909.5,0.1272]
[1758841759462,0.7054,3909.8,3909.5,0.1272]
[1758841759662,0.2376,3909.8,3909.5,0.1272]
[1758841759971,3.59424701,3910.4,3909.7,0.1272]
[1758841760160,0.001,3910.5,3909.8,0.72287675]
[1758841760493,0.001,3910.5,3909.9,0.2364]
[1758841760664,0.2386,3910.5,3910.0,0.1272]
[1758841760866,5.0724,3910.4,3909.2,0.6973]
[1758841761198,3.2376,3910.3,3909.8,0.1272]
[1758841761807,3.0,3910.0,3909.8,0.1272]
[1758841762005,3.0,3910.0,3908.8,2.79468413]
[1758841762006,4.367,3910.0,3908.8,0.2364]
[1758841762207,3.0,3909.9,3909.5,0.1272]
[1758841762408,5.01057208,3909.9,3909.5,0.1272]
[1758841762561,5.01057208,3909.9,3908.8,0.2364]
[1758841762562,0.4678,3909.8,3908.8,0.2364]
[1758841762761,0.4678,3909.8,3909.2,0.1272]
[1758841762998,0.2376,3909.7,3908.9,0.1272]
[1758841763195,3.0,3909.5,3909.3,0.002]
[1758841763998,3.2376,3909.5,3909.3,0.002]
[1758841764206,0.7054,3909.4,3909.3,0.002]
[1758841765379,3.26333727,3909.4,3909.3,0.002]
[1758841765591,13.45333727,3909.4,3909.3,0.002]
[1758841765795,14.24533727,3909.4,3909.3,0.002]
[1758841765993,16.66422018,3909.4,3909.3,0.002]
[1758841766898,23.16222018,3909.4,3909.3,0.002]
[1758841769604,17.06542598,3909.4,3909.3,0.002]
[1758841769806,13.01008871,3909.4,3909.3,0.002]
[1758841770073,14.557,3909.4,3909.3,0.002]
[1758841772390,17.11493727,3909.4,3909.3,0.002]
[1758841773720,14.557,3909.4,3909.3,0.002]
[1758841773889,17.35253727,3909.4,3909.3,0.002]
[1758841774089,20.35951915,3909.4,3909.3,0.002]
[1758841776388,13.43458188,3909.4,3909.3,0.002]
[1758841776720,14.557,3909.4,3909.3,0.002]
[1758841777830,17.11493727,3909.4,3909.3,0.002]
[1758841778325,17.35253727,3909.4,3909.3,0.002]
[1758841779021,18.14453727,3909.4,3909.3,0.002]
[1758841779821,18.61233727,3909.4,3909.3,0.002]
[1758841780006,20.74128066,3909.4,3909.3,0.002]
[1758841780332,20.03588066,3909.4,3909.3,0.002]
[1758841780817,20.27348066,3909.4,3909.3,0.002]
[1758841781201,20.03588066,3909.4,3909.3,0.002]
[1758841782532,10.19,3909.4,3909.3,0.002]
[1758841782709,10.19,3909.4,3909.3,0.6993]
[1758841783037,0.2386,3910.7,3909.3,0.8265]
[1758841783327,4.367,3910.3,3909.4,0.6973]
[1758841783531,3.0,3910.2,3909.4,3.25519146]
[1758841783694,4.368,3910.1,3909.5,1.02301915]
[1758841783893,3.0,3910.0,3909.5,0.6973]
[1758841784098,3.0,3910.0,3909.6,0.6973]
[1758841784433,3.0,3910.0,3909.7,0.6973]
[1758841784728,3.0,3910.0,3909.3,0.002]
[1758841784931,3.0,3909.8,3909.3,0.2384]
[1758841785242,4.367,3909.9,3909.4,0.4609]
[1758841785440,4.367,3909.9,3909.5,0.72287871]
[1758841785602,3.0,3910.0,3909.6,0.6973]
[1758841785798,3.0,3910.0,3909.7,0.72287741]
[1758841786333,3.0,3910.0,3909.8,0.6973]
[1758841786633,4.368,3910.1,3909.9,0.6973]
[1758841786840,4.368,3910.1,3909.6,2.55779386]
[1758841787073,4.368,3910.1,3910.0,0.6973]
[1758841787242,3.001,3910.1,3910.0,3.25484475]
[1758841787447,3.001,3910.1,3910.0,0.6973]
[1758841788441,0.001,3910.5,3910.0,0.6973]
[1758841788442,0.001,3910.5,3910.1,0.792]
[1758841788652,0.021,3910.9,3910.8,2.55702158]
[1758841788878,0.021,3910.9,3910.8,4.94472374]
[1758841789172,0.12003192,3913.3,3911.0,2.55687002]
[1758841789340,0.047,3913.2,3911.5,2.55656397]
[1758841789978,0.047,3913.2,3911.5,3.32864149]
[1758841790331,0.047,3913.2,3911.5,3.35420712]
[1758841790660,0.028,3913.5,3911.5,4.73729272]
[1758841791333,0.028,3913.5,3911.5,4.71172709]
[1758841791733,0.23290001,3913.9,3912.8,2.55571457]
[1758841792355,0.23290001,3913.9,3912.8,3.25087171]
[1758841792662,0.23290001,3913.9,3912.8,7.62331457]
[1758841792968,0.23290001,3913.9,3912.8,8.50597504]
[1758841793130,1e-08,3913.9,3912.8,8.50597504]
[1758841793331,1e-08,3913.9,3912.8,8.63317504]
[1758841793553,1e-08,3913.9,3912.8,4.23517504]
[1758841793760,0.2329,3913.7,3912.8,7.53686047]
[1758841794466,0.2329,3913.7,3912.8,10.09257504]
[1758841794849,0.2329,3913.7,3912.8,3.56557504]
[1758841795179,0.2329,3913.7,3912.8,0.1272]
[1758841795479,0.2329,3913.4,3912.8,0.1272]
[1758841795980,0.2329,3913.8,3912.8,3.35251457]
[1758841796548,0.2329,3913.8,3912.8,0.7968]
[1758841796746,0.6781,3913.8,3912.8,0.7968]
[1758841796950,0.2329,3913.5,3912.8,0.1272]
[1758841797346,0.2329,3913.5,3912.8,2.68291457]
[1758841797546,0.2329,3913.5,3912.8,3.8212772]
[1758841797748,0.2329,3913.5,3912.8,4.0628772]
[1758841797946,0.2329,3913.5,3912.8,1.26556263]
[1758841798146,1e-08,3913.9,3912.8,1.26556263]
[1758841798587,0.2329,3913.7,3912.8,4.4908772]
[1758841798874,0.4452,3913.8,3912.8,8.2092772]
[1758841799076,0.2329,3913.5,3912.8,5.65356263]
[1758841799281,0.2329,3913.5,3912.8,8.2092772]
[1758841800196,0.2329,3913.5,3912.8,5.65356263]
[1758841800382,0.2329,3913.2,3912.8,5.65356263]
[1758841800585,0.2329,3913.2,3912.8,1.26556263]
[1758841800747,0.6991,3912.9,3912.8,0.1272]
[1758841801398,0.021,3912.9,3912.8,0.1272]
[1758841801600,0.021,3912.9,3912.8,0.7968]
[1758841801750,0.021,3912.9,3912.8,3.35251457]
[1758841802092,0.021,3912.9,3912.8,4.41006203]
[1758841802299,0.021,3912.9,3912.8,4.38450489]
[1758841804895,0.021,3912.9,3912.8,4.25730489]
[1758841805209,0.021,3912.9,3912.8,1.15919032]
[1758841805413,0.021,3912.9,3912.8,0.1272]
[1758841805565,0.021,3912.9,3912.8,4.5112]
[1758841806472,0.021,3912.9,3912.8,0.1272]
[1758841806692,0.714,3912.9,3912.4,0.35]
[1758841806871,0.021,3912.9,3912.5,0.35]
[1758841807074,0.693,3912.8,3912.4,4.383]
[1758841807269,0.2395,3912.7,3912.4,4.383]
[1758841809019,0.021,3912.9,3911.7,0.2494]
[1758841809169,0.693,3912.6,3911.8,4.383]
[1758841809475,2.57665776,3912.9,3911.1,0.4553]
[1758841809476,0.693,3912.5,3911.1,0.4553]
[1758841809688,0.2395,3912.4,3911.2,0.789]
[1758841809887,0.693,3912.3,3911.2,0.789]
[1758841810087,0.2395,3912.2,3911.2,3.34575854]
[1758841810291,0.2395,3912.2,3911.3,0.61804585]
[1758841810620,0.2395,3912.6,3911.7,2.55637592]
[1758841810836,0.2395,3912.6,3911.3,0.61804585]
[1758841810837,0.2395,3912.6,3911.8,5.0857]
[1758841811125,0.693,3912.5,3911.3,0.61804585]
[1758841811415,0.693,3912.4,3911.6,4.381]
[1758841811620,0.693,3912.4,3911.7,0.02556433]
[1758841814641,3.693,3912.4,3911.6,4.381]
[1758841814919,0.2395,3912.3,3911.6,4.381]
[1758841815126,0.693,3912.2,3911.3,0.61804585]
[1758841815282,0.2395,3912.1,3911.4,4.381]
[1758841815483,0.693,3912.1,3911.3,3.95]
[1758841815699,0.4535,3912.1,3911.3,3.95]
[1758841816024,0.2395,3912.0,3911.3,3.95]
[1758841816629,0.2395,3912.0,3911.7,0.1272]
[1758841816798,0.2395,3911.9,3911.7,0.1272]
[1758841817181,0.2395,3911.8,3911.7,0.1272]
[1758841817788,0.693,3911.8,3911.7,0.1272]
[1758841818035,3.87432954,3911.8,3910.5,0.2403]
[1758841818236,3.0,3911.6,3911.3,0.1272]
[1758841818400,0.693,3911.8,3911.3,0.1272]
[1758841818730,2.99604265,3911.7,3911.3,0.1272]
[1758841818931,0.2395,3911.8,3911.3,0.1272]
[1758841818932,2.5563885,3911.8,3911.3,0.1272]
[1758841819135,0.6773,3911.6,3911.3,0.1272]
[1758841819315,3.23384262,3911.6,3911.0,0.1272]
[1758841819686,3.0,3911.3,3911.0,0.1272]
[1758841819937,3.0,3911.0,3910.1,1.31]
[1758841820086,0.6773,3910.9,3910.7,0.1272]
[1758841820412,0.4396,3910.8,3910.4,0.1272]
[1758841820816,3.2377,3910.9,3910.1,0.02]
[1758841820817,1.4693,3910.7,3910.1,0.02]
[1758841820998,0.792,3910.5,3910.1,0.1472]
[1758841821321,5.557741,3909.7,3909.6,0.002]
[1758841821636,3.792,3909.7,3909.6,0.002]
[1758841822240,3.0,3909.7,3909.6,0.002]
[1758841822402,3.0,3909.7,3909.6,0.6886]
[1758841822924,3.0,3909.7,3909.6,0.973218]
[1758841823924,3.0,3909.7,3909.6,7.486218]
[1758841824082,3.0,3909.7,3909.6,7.485218]
[1758841824283,3.0,3909.7,3909.6,0.286618]
[1758841824498,0.2377,3909.7,3909.6,0.002]
[1758841824699,0.4396,3910.0,3909.6,0.002]
[1758841824904,0.2377,3909.7,3909.6,0.002]
[1758841825825,0.792,3910.1,3909.6,0.002]
[1758841825997,1.0297,3910.1,3909.6,0.002]
[1758841826191,0.792,3909.9,3909.6,0.002]
[1758841826624,2.55716026,3910.6,3909.6,0.002]
[1758841826625,0.792,3910.2,3909.6,0.002]
[1758841826792,1.1712,3910.2,3909.6,0.002]
[1758841826998,1.4089,3910.2,3909.6,0.002]
[1758841828029,0.4396,3910.1,3909.6,0.002]
[1758841828335,0.792,3910.0,3909.6,0.002]
[1758841828631,0.2377,3910.0,3909.6,0.002]
[1758841828932,0.2377,3909.9,3909.6,0.002]
[1758841829128,0.792,3909.8,3909.6,0.002]
[1758841829425,3.0,3909.7,3909.6,0.002]
[1758841829625,7.027041,3909.7,3909.6,0.002]
[1758841829794,2.2599231,3909.7,3909.6,0.002]
[1758841829990,4.8176641,3909.7,3909.6,0.002]
[1758841830229,12.1966641,3909.7,3909.6,0.002]
[1758841831905,9.6389231,3909.7,3909.6,0.002]
[1758841832243,4.8203231,3909.7,3909.6,0.002]
[1758841832441,3.792,3909.7,3909.6,0.002]
[1758841834342,4.0297,3909.7,3909.6,0.002]
[1758841836561,4.0297,3909.7,3909.2,0.002]
[1758841836562,6.35000271,3909.3,3909.2,0.002]
[1758841836746,10.85020271,3909.3,3909.2,0.002]
[1758841836925,12.19101025,3909.3,3909.2,0.002]
[1758841837129,12.86831025,3909.3,3909.2,0.002]
[1758841838345,12.86831025,3909.3,3909.1,0.022]
[1758841838346,6.35006814,3909.2,3909.1,0.022]
[1758841838719,7.02736814,3909.2,3909.1,0.022]
[1758841838920,9.54553039,3909.2,3909.1,0.022]
[1758841841349,6.98746225,3909.2,3909.1,0.022]
[1758841841548,6.31016225,3909.2,3909.1,0.022]
[1758841841753,12.81116225,3909.2,3909.1,0.022]
[1758841841950,15.60693039,3909.2,3909.1,0.022]
[1758841843048,16.04653039,3909.2,3909.1,0.022]
[1758841845435,0.792,3908.9,3908.8,0.002]
[1758841845628,3.35046082,3908.6,3908.5,0.002]
[1758841845827,0.792,3908.1,3907.9,0.002]
[1758841846028,8.162,3908.0,3907.9,0.002]
[1758841846227,8.162,3908.0,3907.5,0.6886]
[1758841846228,0.792,3907.6,3907.5,0.002]
[1758841846443,8.162,3907.6,3907.5,0.002]
[1758841847870,3.792,3907.6,3907.5,0.002]
[1758841848043,3.0,3907.6,3907.5,0.002]
[1758841848244,8.899,3907.6,3907.5,0.002]
[1758841848669,8.162,3907.6,3907.5,0.002]
[1758841849171,8.162,3907.6,3907.5,0.6894]
[1758841849338,8.162,3907.6,3907.5,0.2423]
[1758841849537,8.162,3907.6,3907.5,0.002]
[1758841850840,8.4015,3907.6,3907.5,0.002]
[1758841851638,15.352,3907.6,3907.5,0.002]
[1758841852139,3.792,3907.5,3907.1,0.022]
[1758841852345,0.792,3907.2,3906.1,0.02]
[1758841852574,0.792,3906.9,3906.1,0.02]
[1758841852775,3.792,3906.7,3906.1,0.7074]
[1758841852956,3.792,3906.5,3906.1,0.7074]
[1758841853148,0.2395,3907.1,3906.2,0.6874]
[1758841853149,3.792,3906.3,3906.2,0.6874]
[1758841853348,8.169,3906.3,3906.2,0.6874]
[1758841853873,3.0,3906.3,3906.2,0.6874]
[1758841855369,3.0,3906.3,3906.2,1.01415505]
[1758841855572,3.0,3906.3,3906.2,0.6874]
[1758841855754,0.792,3907.2,3906.2,0.8146]
[1758841855956,3.792,3907.0,3906.8,0.1272]
[1758841857591,3.792,3907.2,3906.9,0.8146]
[1758841857882,3.792,3907.2,3906.9,0.1272]
[1758841859071,3.792,3907.0,3906.7,0.002]
[1758841859273,0.792,3906.8,3906.7,0.002]
[1758841859672,4.0632396,3906.8,3906.7,0.002]
[1758841859879,7.0632396,3906.8,3906.7,0.002]
[1758841860667,3.35203276,3906.2,3906.1,0.02]
[1758841860881,8.50420328,3906.2,3906.1,0.02]
[1758841861191,11.30373604,3906.2,3906.1,0.02]
[1758841861489,9.21580328,3906.2,3906.1,0.02]
[1758841861664,3.792,3906.2,3906.1,0.02]
[1758841861866,3.792,3906.2,3906.1,0.7074]
[1758841862192,3.792,3906.2,3906.1,0.8354]
[1758841862410,3.792,3906.2,3906.1,0.7074]
[1758841863916,3.792,3906.2,3906.1,0.02]
[1758841865432,3.792,3906.2,3906.1,0.7264]
[1758841866582,3.0,3906.2,3906.1,0.7264]
[1758841867789,2.133,3907.3,3906.1,0.7264]
[1758841867988,2.277,3907.2,3906.2,0.7064]
[1758841868222,3.792,3907.1,3906.3,0.7064]
[1758841868515,0.792,3907.1,3906.4,0.7064]
[1758841868724,3.792,3907.1,3906.5,0.73199836]
[1758841868925,0.2361,3907.0,3906.1,0.02]
[1758841869086,0.792,3906.7,3906.2,0.73200032]
[1758841869419,0.792,3906.7,3906.3,0.7064]
[1758841869621,5.3691,3907.9,3906.4,0.7064]
[1758841869830,0.792,3907.3,3906.5,0.7064]
[1758841870029,0.792,3907.3,3906.6,0.99034]
[1758841870238,0.792,3907.3,3906.7,0.7064]
[1758841870726,0.792,3907.3,3906.7,0.4684]
[1758841871035,0.792,3907.1,3906.1,2.391]
[1758841871328,3.0,3907.4,3906.2,0.73200032]
[1758841871531,3.0,3907.4,3906.1,2.87434]
[1758841871532,0.792,3907.3,3906.1,2.87434]
[1758841871721,0.792,3907.3,3906.3,0.7064]
[1758841871918,0.792,3907.3,3906.1,2.87434]
[1758841872122,0.792,3907.3,3906.4,0.7064]
[1758841872348,0.792,3907.3,3907.1,0.1272]
[1758841872560,4.04837755,3907.2,3907.1,0.1272]
[1758841872709,0.792,3906.7,3906.1,0.02]
[1758841872909,0.792,3906.5,3906.1,0.022]
[1758841873931,0.792,3906.5,3906.1,0.26]
[1758841874139,2.133,3907.4,3906.2,0.73200032]
[1758841874323,0.792,3907.1,3906.2,0.7064]
[1758841874509,0.792,3907.1,3906.3,0.7064]
[1758841874710,0.001,3907.3,3906.4,0.7064]
[1758841874946,0.001,3907.3,3906.5,0.28394]
[1758841875140,0.001,3907.3,3906.5,0.99034]
[1758841875141,0.793,3907.3,3906.5,0.99034]
[1758841875459,0.001,3907.3,3906.6,0.7064]
[1758841875630,0.001,3907.3,3906.6,0.4684]
[1758841875812,0.001,3907.3,3906.7,0.238]
[1758841880246,0.001,3907.3,3906.1,0.022]
[1758841880443,0.2491,3907.3,3906.1,0.97642129]
[1758841880656,0.2491,3907.3,3906.2,0.696]
[1758841880966,0.2491,3907.3,3906.3,0.696]
[1758841881828,0.2491,3907.3,3906.4,0.2428]
[1758841882033,0.001,3907.3,3906.5,0.4532]
[1758841882332,0.001,3907.3,3906.6,0.2428]
[1758841882753,0.001,3907.3,3907.0,0.1272]
[1758841883348,0.2491,3907.3,3907.0,0.1272]
[1758841883650,1.4735,3907.2,3907.0,0.1272]
[1758841883857,0.4334,3907.1,3907.0,0.1272]
[1758841884041,0.6815,3907.1,3907.0,0.1272]
[1758841884245,0.2481,3907.1,3907.0,0.1272]
[1758841884669,0.792,3907.2,3907.0,0.1272]
[1758841885070,1.0401,3907.2,3907.0,0.1272]
[1758841885257,0.001,3907.3,3907.0,0.1272]
[1758841885636,0.001,3907.3,3907.0,0.8232]
[1758841887387,0.001,3907.3,3907.2,0.1272]
[1758841887832,0.001,3907.3,3907.2,0.8232]
[1758841890070,0.001,3907.3,3907.2,0.1272]
[1758841894691,1.0411,3907.3,3907.2,0.1272]
[1758841894859,1.18855,3907.3,3907.2,0.1272]
[1758841895471,0.793,3907.3,3907.2,0.1272]
[1758841895687,0.001,3907.3,3907.2,0.8232]
[1758841896211,0.001,3907.3,3907.2,0.37]
[1758841896416,0.001,3907.3,3907.2,0.1272]
[1758841896612,0.001,3907.3,3907.2,0.8232]
[1758841896817,0.001,3907.3,3907.2,0.1272]
[1758841897588,0.001,3907.3,3907.2,0.37]
[1758841897816,0.001,3907.3,3907.2,0.8232]
[1758841899490,0.001,3907.3,3907.2,0.1272]
[1758841901588,1.0411,3907.3,3907.2,0.1272]
[1758841901790,0.793,3907.3,3907.2,0.1272]
[1758841903928,1.0411,3907.3,3907.2,0.1272]
[1758841904107,0.793,3907.3,3907.2,0.1272]
[1758841907716,0.001,3907.3,3907.2,0.8232]
[1758841908601,0.001,3907.3,3907.2,0.1272]
[1758841908804,1.0296,3907.3,3907.2,0.1272]
[1758841909002,1.1797,3907.3,3907.2,0.1272]
[1758841909228,0.792,3907.2,3906.6,2.134]
[1758841909437,0.001,3907.3,3906.6,0.002]
[1758841909698,0.2366,3907.2,3907.0,0.1272]
[1758841909906,4.2634,3907.1,3906.6,0.002]
[1758841910226,0.792,3906.9,3906.6,0.1292]
[1758841910428,0.792,3906.7,3906.6,0.1292]
[1758841910944,1.0286,3906.7,3906.6,0.1292]
[1758841911312,0.793,3907.3,3906.6,0.7995]
[1758841911514,0.792,3907.1,3907.0,0.1272]
[1758841911907,1.0286,3907.1,3907.0,0.1272]
[1758841912702,1.9501,3907.1,3906.6,0.002]
[1758841912920,0.2366,3907.0,3906.6,0.1292]
[1758841913251,0.792,3906.8,3906.6,0.1292]
[1758841913737,0.2366,3906.8,3906.6,0.1292]
[1758841914709,0.2366,3907.0,3906.6,0.1292]
[1758841915803,3.82286629,3907.1,3906.6,0.1292]
[1758841916134,3.708,3907.0,3906.6,0.1292]
[1758841916431,0.708,3907.0,3906.6,0.1292]
[1758841916636,0.792,3906.8,3906.6,0.1292]
[1758841917203,1.0286,3906.8,3906.6,0.1292]
[1758841918029,0.792,3907.0,3906.6,0.1292]
[1758841918227,0.65103141,3907.1,3906.6,0.1292]
[1758841918536,1.0286,3907.0,3906.6,0.1292]
[1758841919543,0.792,3906.8,3906.6,0.1292]
[1758841919910,0.2366,3906.8,3906.6,0.1292]
[1758841920114,1.0286,3906.7,3906.6,0.1292]
[1758841920350,1.0286,3906.7,3906.6,0.002]
[1758841920351,7.24176512,3906.7,3906.6,0.002]
[1758841920539,7.05970512,3906.7,3906.6,0.002]
[1758841922639,13.56370512,3906.7,3906.6,0.002]
[1758841922947,3.1272,3906.7,3906.6,0.002]
[1758841923325,5.92350512,3906.7,3906.6,0.002]
[1758841923738,4.64920227,3906.7,3906.6,0.002]
[1758841923941,0.1282,3907.3,3906.6,0.6886]
[1758841924169,3.0,3907.1,3906.6,0.6886]
[1758841924333,3.0,3907.1,3906.7,0.6866]
[1758841924663,4.01843,3907.1,3906.6,0.002]
[1758841924841,0.792,3907.0,3906.6,0.002]
[1758841925333,0.792,3907.0,3906.6,0.6886]
[1758841925919,0.792,3907.0,3906.6,0.002]
[1758841948001,11.58050328,3906.2,3906.1,0.718]
[1758841948206,14.14053604,3906.2,3906.1,0.2545]
[1758841948358,14.14053604,3906.2,3906.1,0.022]
[1758841949721,11.58050328,3906.2,3906.1,0.022]
[1758841949859,0.40249867,3906.7,3906.1,0.718]
[1758841950061,3.0,3906.6,3906.2,0.696]
[1758841950272,0.792,3906.5,3906.3,0.696]
[1758841950477,0.792,3906.5,3906.4,0.696]
[1758841951292,3.0,3906.6,3906.4,0.696]
[1758841951664,0.792,3906.5,3906.1,0.022]
[1758841952395,0.792,3906.5,3906.3,0.1272]
[1758841952560,0.792,3906.5,3906.4,0.696]
[1758841955920,4.371,3906.7,3906.4,0.696]
[1758841955921,0.001,3906.7,3906.4,0.696]
[1758841956075,0.001,3906.7,3906.3,0.1272]
[1758841956299,0.001,3906.7,3906.3,0.3597]
[1758841956300,0.793,3906.7,3906.3,0.3597]
[1758841956503,0.001,3906.7,3906.3,0.5907]
[1758841956690,0.001,3906.7,3906.4,0.696]
[1758841957489,0.001,3906.7,3906.3,0.1272]
[1758841957689,0.792,3906.5,3906.3,0.1272]
[1758841957910,0.001,3906.7,3906.3,0.1272]
[1758841958119,0.001,3906.7,3906.3,0.5907]
[1758841958320,0.001,3906.7,3906.4,0.696]
[1758841958687,0.001,3906.7,3906.6,0.1272]
[1758841959093,0.001,3906.7,3906.6,0.8232]
[1758841960296,0.001,3906.7,3906.6,0.1272]
[1758841960602,0.001,3906.7,3906.6,0.8232]
[1758841965413,0.001,3906.7,3906.6,0.5907]
[1758841965613,0.001,3906.7,3906.6,0.8232]
[1758841966351,0.001,3906.7,3906.6,0.1272]
[1758841966512,0.792,3906.6,3906.4,0.1272]
[1758841968330,0.792,3906.6,3906.4,0.368]
[1758841968730,0.792,3906.6,3906.4,0.1272]
[1758841971025,1.0311,3906.6,3906.4,0.1272]
[1758841971435,6.35190169,3906.4,3906.3,0.002]
[1758841971861,7.02440169,3906.4,3906.3,0.002]
[1758841972631,11.32099174,3906.4,3906.3,0.002]
[1758841973139,15.68799174,3906.4,3906.3,0.002]
[1758841973342,3.792,3906.4,3906.3,0.002]
[1758841973562,3.792,3906.4,3906.3,0.6945]
[1758841973762,3.0,3906.4,3906.3,0.6945]
[1758841976534,0.001,3906.7,3906.3,0.6945]
[1758841976769,0.001,3906.7,3906.4,0.2408]
[1758841977262,0.001,3906.6,3906.4,0.2408]
[1758841977660,0.001,3906.6,3906.3,0.002]
[1758841977865,0.001,3906.6,3906.5,0.2408]
[1758841978063,0.001,3906.6,3906.5,0.6925]
[1758841979469,0.001,3906.6,3906.3,0.002]
[1758841979470,0.792,3906.5,3906.3,0.002]
[1758841979660,1.0311,3906.5,3906.3,0.002]
[1758841979868,3.792,3906.5,3906.3,0.002]
[1758841980243,4.0311,3906.5,3906.3,0.002]
[1758841980444,3.792,3906.5,3906.3,0.002]
[1758841980863,6.35185364,3906.5,3906.3,0.002]
[1758841981067,3.792,3906.5,3906.3,0.002]
[1758841981379,4.0311,3906.5,3906.3,0.1292]
[1758841981577,3.792,3906.5,3906.3,0.1292]
[1758841981799,3.792,3906.5,3904.1,1e-08]
[1758841981800,2.56121299,3904.4,3904.1,1e-08]
[1758841981949,2.56121299,3904.4,3903.1,0.02]